Workbook

Sheet Sheet1
A1: 中国石油大学（北京）马克思主义学院政治学专业2021级硕士研究生综合测评汇总表
A2: 学号 | B2: 德育成绩 | G2: 智育成绩 | L2: 文体成绩 | Q2: 总分 | R2: 排名
B3: 基础分 | C3: 奖励分 | D3: 惩罚分 | E3: 总分 | F3: 基准后总分 | G3: 学习成绩分 | H3: 奖励分 | I3: 惩罚分 | J3: 总分 | K3: 基准后总分 | L3: 基本分 | M3: 奖励分 | N3: 惩罚分 | O3: 总 分 | P3: 基准后总分
A4: 2021211501 | B4: 93.47826087 | C4: 5.1 | D4: 0 | E4: =B4+C4 -> 98.57826087 | F4: =E4/MAX($E$4:$E$10)*100 -> 86.70363289 | G4: 92.29166667 | H4: 0 | I4: 0 | J4: 92.29166667 | K4: =J4/MAX($J$4:$J$10)*100 -> 92.97659424 | L4: 100 | M4: 0 | N4: 0 | O4: =L4+M4 -> 100 | P4: =O4/MAX($O$4:$O$10)*100 -> 84.31703204 | Q4: =F4*0.2+K4*0.7+P4*0.1 -> 90.85604575 | R4: =RANK(Q4,$Q$4:$Q$10,0) -> 7
A5: 2021211502 | B5: 91.30434783 | C5: 13.6 | D5: 0 | E5: =B5+C5 -> 104.9043478 | F5: =E5/MAX($E$4:$E$10)*100 -> 92.26768642 | G5: 89.50636364 | H5: 0 | I5: 0 | J5: 89.50636364 | K5: =J5/MAX($J$4:$J$10)*100 -> 90.17062054 | L5: 100 | M5: 16.33333333 | N5: 0 | O5: =L5+M5 -> 116.3333333 | P5: =O5/MAX($O$4:$O$10)*100 -> 98.08881394 | Q5: =F5*0.2+K5*0.7+P5*0.1 -> 91.38185306 | R5: =RANK(Q5,$Q$4:$Q$10,0) -> 6
A6: 2021211503 | B6: 88.69565217 | C6: 25 | D6: 0 | E6: 113.6956522 | F6: 100 | G6: 93.26333333 | H6: 6 | I6: 0 | J6: 99.26333333 | K6: 100 | L6: 100 | M6: 18.6 | N6: 0 | O6: 118.6 | P6: 100 | Q6: 100 | R6: 1
A7: 2021211504 | B7: 94.34782609 | C7: 13.6 | D7: 0 | E7: 107.9478261 | F7: 94.94455067 | G7: 93.15166667 | H7: 3 | I7: 0 | J7: 96.15166667 | K7: 96.86524061 | L7: 100 | M7: 16.33333333 | N7: 0 | O7: 116.3333333 | P7: 98.08881394 | Q7: 96.60345995 | R7: 2
A8: 2021211505 | B8: 91.73913043 | C8: 11.8 | D8: 0 | E8: 103.5391304 | F8: 91.06692161 | G8: 92.58666667 | H8: 0 | I8: 0 | J8: 92.58666667 | K8: 93.27378354 | L8: 100 | M8: 17.26666667 | N8: 0 | O8: 117.2666667 | P8: 98.87577291 | Q8: 93.39261009 | R8: 3
A9: 2021211506 | B9: 93.04347826 | C9: 10.5 | D9: 0 | E9: 103.5434783 | F9: 91.0707457 | G9: 91.61111111 | H9: 0 | I9: 0 | J9: 91.61111111 | K9: 92.29098806 | L9: 100 | M9: 8.666666667 | N9: 0 | O9: 108.6666667 | P9: 91.62450815 | Q9: 91.98029159 | R9: 5
A10: 2021211507 | B10: 90.86956522 | C10: 13.9 | D10: 0 | E10: 104.7695652 | F10: 92.14913958 | G10: 89.8 | H10: 3 | I10: 0 | J10: 92.8 | K10: 93.48870009 | L10: 100 | M10: 12 | N10: 0 | O10: 112 | P10: 94.43507589 | Q10: 93.31542557 | R10: 4
